[Event "1st Henriquez Urena Memorial 2022"]
[Site "Santo Domingo"]
[Date "2022.09.21"]
[Round "8.9"]
[White "Lugo Matos, Richards Reynier"]
[Black "Camacho Campusano, David Daniel"]
[Result "1-0"]
[ECO "C54"]
[WhiteElo "2157"]
[BlackElo "2230"]
[Annotator "TA"]
[PlyCount "91"]
[EventDate "2022.09.16"]
[EventType "swiss"]
[EventCountry "DOM"]
[SourceTitle "playchess.com"]
[Source "ChessBase"]
[SourceQuality "1"]
[TimeControl "5400+30"]

{[%evp 11,91,6,22,9,19,0,11,2,0,0,0,0,0,7,16,5,9,0,0,0,8,12,18,0,2,0,4,0,0,-15,-13,-20,-3,-39,-39,-47,-50,-85,-78,-97,-85,-97,-70,-63,-43,-43,-47,-46,-12,-13,-12,-12,-13,-14,0,0,41,24,57,78,97,92,321,316,304,286,555,550,843,826,604,35,92,118,205,156,155,155,416,388,960,976]} 1. e4 {[%emt 0:05:33]} e5 {[%emt 0:04:05]} 2. Nf3 {[%emt 0:00:23]} Nc6 {[%emt 0:00:09]} 3. Bc4 {[%emt 0:00:21]} Bc5 {[%emt 0:00:30]} 4. d3 {[%emt 0:00:44]} Nf6 {[%emt 0:00:34]} 5. c3 {[%emt 0:01:04]} d6 {[%emt 0:01:44]} 6. Bb3 {[%emt 0:00:11]} Bb6 {[%emt 0:00:43]} 7. h3 {[%emt 0:00:15] C54: Giuoco Piano: 4 c3 Nf6, main lines with 5 d4 and 5 d3.} h6 {[%emt 0:01:31]} 8. Nbd2 {[%emt 0:05:52]} Ne7 {[%emt 0:03:20]} 9. Nc4 {[%emt 0:02:25] The position is equal.} Ng6 {[%emt 0:05:29]} 10. a4 {[%emt 0:02:38] With the idea a5.} c6 {[%emt 0:01:29]} 11. Nxb6 {[%emt 1:16:34]} axb6 {[%emt 0:03:01]} 12. O-O {[%emt 0:09:12]} b5 {[%emt 0:06:34]} 13. Re1 {[%emt 0:05:37]} O-O {[%emt 0:02:32] [#]} 14. Bd2 $146 {[%emt 0:04:22]} ({Predecessor:} 14. Be3 bxa4 15. Rxa4 Rxa4 16. Bxa4 d5 17. Bc2 Re8 18. Qb1 Be6 19. d4 exd4 20. Bxd4 Nxe4 21. Bxe4 dxe4 22. Qxe4 {½-½ (31) Hou,Y (2639)-Zhou,J (2625) Beijing 2012}) 14... bxa4 $1 {[%emt 0:01:24]} 15. Rxa4 {[%emt 0:00:05]} Rxa4 {[%emt 0:00:12]} 16. Bxa4 {[%emt 0:00:09]} Qe7 {[%emt 0:03:23]} 17. Nh2 {[%emt 0:03:08]} b5 {[%emt 0:07:25]} 18. Bc2 {[%emt 0:01:51]} c5 {[%emt 0:00:23]} 19. Qe2 {[%emt 0:04:51][%cal Od3d4]} Be6 {[%emt 0:05:54]} 20. Ra1 {[%emt 0:03:58]} Qb7 {[%emt 0:06:46]} 21. Nf1 {[%emt 0:03:12]} Ra8 {[%emt 0:01:38]} 22. Re1 {[%emt 0:10:36]} Ra2 {[%emt 0:03:49]} 23. Bc1 {[%emt 0:00:00]} b4 {[%emt 0:03:53] [#] aiming for ...bxc3.} 24. cxb4 {[%emt 0:00:00]} Qxb4 {[%emt 0:04:20][%cal Of6h5]} 25. Qd2 {[%emt 0:00:00]} Qb5 {[%emt 0:03:41]} 26. Qc3 {[%emt 0:00:00]} Ne7 {[%emt 0:08:48][%cal Bg6e7,Be7c6,Bc6d4][%mdl 32]} 27. f4 {[%emt 0:02:30]} Nc6 {[%emt 0:05:20]} 28. f5 {[%emt 0:00:00]} Bc8 {[%emt 0:00:58]} 29. Bb3 {[%emt 0:00:00]} Ra1 {[%emt 0:00:47]} 30. Bc4 {[%emt 0:00:00]} Qb6 {[%emt 0:03:38]} 31. Ne3 {[%emt 0:00:00]} Nd4 {[%emt 0:00:53]} 32. Kh2 {[%emt 0:00:00]} Ra7 {[%emt 0:04:11]} 33. Bd2 {[%emt 0:00:00][%cal Bc1d2,Bd2e1,Be1h4,Bh4f6][%mdl 32]} Kf8 {[%emt 0:01:59]} 34. Rb1 {[%emt 0:00:42]} Rb7 {[%emt 0:02:51]} 35. Be1 {[%emt 0:00:50]} Bd7 {[%emt 0:02:24]} 36. Bh4 {[%emt 0:00:23] [#] And now Bxf6 would win. A strong pair of Bishops.} Bc6 $2 {[%emt 0:01:24]} (36... Ng8 $16) 37. Bxf6 $18 {[%emt 0:00:26]} gxf6 {[%emt 0:00:01]} 38. Qe1 {[%emt 0:01:07]} Qb4 $2 {[%emt 0:01:01]} (38... Qd8 {was worth a try.} 39. Qh4 Ke7 40. Qxh6 Qg8) 39. Qh4 {[%emt 0:00:25][%csl LRf6,LRh6]} Qd2 {[%emt 0:00:30] Hoping for ...Nf3+.} 40. Qxh6+ {[%emt 0:01:04]} Ke8 {[%emt 0:00:24]} 41. Ng4 $2 {[%emt 0:02:50]} ({White should play} 41. Ra1 $18 Rxb2 42. Kh1 (42. Qh8+ Kd7 $11)) 41... Qxh6 {[%emt 0:00:46]} (41... Nf3+ $1 $14 42. Kg3 Qxh6 43. Nxh6 Nd2) 42. Nxh6 $16 {[%emt 0:00:02]} Bb5 {[%emt 0:00:20]} (42... Kf8 $16) 43. Bd5 {[%emt 0:01:40]} Ra7 {[%emt 0:00:34]} 44. Rd1 {[%emt 0:01:31]} Ba4 $2 {[%emt 0:00:36]} (44... Kf8 $16 45. Ng4 Kg7) 45. Ra1 $18 {[%emt 0:00:23][%cal Ob2b3] b3! is the strong threat.} Ke7 $2 {[%emt 0:00:30]} (45... Ra6 46. Nxf7 Ke7) 46. b3 {[%emt 0:00:13] Weighted Error Value: White=0.24 (precise) /Black=0.39} 1-0

[Event "1st Henriquez Urena Memorial 2022"]
[Site "Santo Domingo"]
[Date "2022.09.22"]
[Round "9.2"]
[White "Leon Hoyos, Manuel"]
[Black "Peralta, Fernando"]
[Result "1-0"]
[ECO "A14"]
[WhiteElo "2491"]
[BlackElo "2600"]
[Annotator "TA"]
[PlyCount "85"]
[EventDate "2022.09.16"]
[EventType "swiss"]
[EventCountry "DOM"]
[SourceTitle "playchess.com"]
[Source "ChessBase"]
[SourceQuality "1"]
[TimeControl "5400+30"]

{[%evp 20,85,0,0,0,0,0,-11,9,0,16,26,15,0,0,0,0,-8,10,21,38,43,58,58,58,56,60,58,55,54,116,0,0,0,22,18,54,6,5,4,4,4,4,4,6,6,14,0,0,0,0,0,32,0,0,0,0,0,0,0,0,0,0,0,0,0,0,0]} 1. c4 {[%emt 0:00:04]} e6 {[%emt 0:01:26]} 2. g3 {[%emt 0:00:11]} d5 {[%emt 0:00:49]} 3. Bg2 {[%emt 0:00:43]} Nf6 {[%emt 0:00:07]} 4. Nf3 {[%emt 0:00:10]} Be7 {[%emt 0:00:15]} 5. O-O {[%emt 0:00:14]} O-O {[%emt 0:00:02]} 6. b3 {[%emt 0:02:14][%cal Bb2b3,Bb3c4][%mdl 32]} b6 {[%emt 0:01:57]} 7. Bb2 {[%emt 0:00:32]} Bb7 {[%emt 0:00:09]} 8. e3 {[%emt 0:01:29]} c5 {[%emt 0:00:49]} 9. Nc3 {[%emt 0:00:37]} dxc4 {[%emt 0:00:06] 9...Qc8 is the fancy move.} 10. bxc4 {[%emt 0:00:09]} Nc6 {[%emt 0:00:05]} 11. Qe2 {[%emt 0:01:35]} a6 {[%emt 0:00:43] A14: English Opening: 1...e6 with b3 by White.} 12. Ne1 {[%emt 0:06:04]} Rb8 {[%emt 0:02:03]} 13. f4 {[%emt 0:04:34]} b5 {[%emt 0:12:15]} 14. cxb5 {[%emt 0:05:13]} axb5 {[%emt 0:00:05]} 15. Nxb5 {[%emt 0:00:29]} Ba6 {[%emt 0:01:55]} 16. a4 {[%emt 0:07:01]} Na7 {[%emt 0:09:24][%cal Ra7b5]} 17. Be5 {[%emt 0:11:27]} Rb6 {[%emt 0:00:57][%cal Ra7b5] [#]} 18. Rb1 $146 {[%emt 0:20:24][%mdl 2048] Threatens to win with Bc7. White is not holding back} ({Predecessor:} 18. Bxf6 Bxf6 19. Rb1 Nxb5 20. axb5 Rxb5 21. Rxb5 Qd7 22. Be4 Bxb5 23. Bd3 Bc6 24. Qh5 {½-½ (43) Vyzmanavin,A (2480)-Ubilava,E (2445) Minsk 1983}) 18... Qd7 {[%emt 0:12:34][%cal Ra7b5]} 19. Bxf6 {[%emt 0:07:01]} Bxf6 {[%emt 0:04:25]} 20. Qd3 {[%emt 0:03:39]} Rd8 {[%emt 0:17:47][%cal Bf8d8,Bd8d7,Bd7d2][%mdl 32]} 21. Qxd7 {[%emt 0:01:09]} Rxd7 {[%emt 0:00:06]} 22. Nf3 $1 {[%emt 0:00:24] [#] aiming for Nxa7.} Nxb5 {[%emt 0:00:59]} 23. Rfc1 $1 {[%emt 0:01:50]} c4 {[%emt 0:18:43][%cal Oh7h6]} 24. Bf1 {[%emt 0:07:52]} Bb7 {[%emt 0:05:23] [#]} (24... Kf8 $14) 25. Ne1 {[%emt 0:00:42]} (25. Ne5 $1 $16 {[%cal Re5d7]} Bxe5 26. fxe5) 25... Rxd2 $11 {[%emt 0:00:57][%cal Of6b2] Strongly threatening ...Bb2!} 26. Rxc4 {[%emt 0:02:08]} g6 {[%emt 0:05:44]} 27. axb5 {[%emt 0:04:45]} Bd8 {[%emt 0:00:45] A strong pair of Bishops.} 28. Rc2 {[%emt 0:04:42]} (28. Rd4 $14 {should be considered.} Rxd4 29. exd4) 28... Rbd6 {[%emt 0:01:19]} 29. Rxd2 {[%emt 0:00:34]} Rxd2 {[%emt 0:00:05]} 30. Bg2 {[%emt 0:00:16]} Bxg2 {[%emt 0:00:40]} 31. Nxg2 {[%emt 0:00:02][%mdl 4096] Endgame Hoping for b6. KRB-KRN} Bb6 {[%emt 0:00:07]} 32. Rb3 {[%emt 0:02:16]} h5 {[%emt 0:00:43]} 33. Kf1 {[%emt 0:00:30]} Kf8 {[%emt 0:00:13]} 34. h3 {[%emt 0:00:12]} Ke7 {[%emt 0:03:53]} 35. Ne1 {[%emt 0:01:50]} Ra2 {[%emt 0:00:00]} 36. g4 {[%emt 0:01:57]} hxg4 {[%emt 0:00:00] The position is equal.} 37. hxg4 {[%emt 0:00:02]} f6 {[%emt 0:00:00]} 38. Nf3 {[%emt 0:00:21]} Kd6 {[%emt 0:02:00]} 39. g5 {[%emt 0:00:43]} fxg5 {[%emt 0:00:00]} 40. Nxg5 {[%emt 0:00:05]} Kd5 {[%emt 0:01:00]} 41. Rc3 {[%emt 0:02:44]} Rb2 {[%emt 0:00:00]} 42. Nxe6 {[%emt 0:00:15]} Kxe6 {[%emt 0:00:29]} ({Don't take} 42... Rb1+ 43. Ke2 $16) 43. Rc6+ {[%emt 0:00:02][%mdl 32768] Weighted Error Value: White=0.10 (very precise) /Black=0.09 (flawless) . Loss on time!?} 1-0

[Event "1st Henriquez Urena Memorial 2022"]
[Site "Santo Domingo"]
[Date "2022.09.22"]
[Round "9.3"]
[White "Mesa Cruz, Juan Carlos"]
[Black "Ramirez, Alejandro"]
[Result "1/2-1/2"]
[ECO "B22"]
[WhiteElo "2119"]
[BlackElo "2561"]
[Annotator "TA"]
[PlyCount "44"]
[EventDate "2022.09.16"]
[EventType "swiss"]
[EventCountry "DOM"]
[SourceTitle "playchess.com"]
[Source "ChessBase"]
[SourceQuality "1"]
[TimeControl "5400+30"]

{[%evp 9,44,5,13,16,26,-43,28,27,29,24,96,20,145,131,241,96,250,251,269,0,160,0,258,0,157,129,161,-214,169,0,163,137,133,37,56,-2,1009]} 1. e4 {[%emt 0:01:47]} c5 {[%emt 0:00:08]} 2. Nf3 {[%emt 0:00:08]} Nc6 {[%emt 0:00:04]} 3. c3 {[%emt 0:00:16]} d5 {[%emt 0:00:47]} 4. exd5 {[%emt 0:00:33]} Qxd5 {[%emt 0:00:04]} 5. Na3 {[%emt 0:00:15]} Bg4 {[%emt 0:08:25]} 6. Be2 {[%emt 0:01:56] B22: Sicilian: 2 c3.} e5 {[%emt 0:03:06]} 7. Nc2 {[%emt 0:02:29] [#]} (7. h3 $11 Bxf3 8. Bxf3) 7... Qd6 $146 {[%emt 0:10:28]} ({Better is} 7... e4 $1 $15 8. Ne3 Qh5 9. Nxg4 Qxg4) ({Predecessor:} 7... Qd7 8. Ne3 h5 9. h3 Bxf3 10. Bxf3 Nf6 11. Qa4 Nd8 12. Qxd7+ Kxd7 13. d3 Nc6 {1-0 (69) Schneider,I (2494)-Braeuning,R (2285) Magdeburg 2019}) 8. Ne3 {[%emt 0:06:25] White has an edge.} Bd7 {[%emt 0:02:21]} 9. O-O {[%emt 0:05:07]} O-O-O {[%emt 0:04:31]} (9... Nf6 $11) 10. a3 {[%emt 0:04:29]} (10. Nc4 $16 Qc7 11. Ng5) 10... f5 {[%emt 0:11:56]} (10... e4 $11 {remains equal.} 11. Ne1 f5) 11. d4 {[%emt 0:17:04]} cxd4 {[%emt 0:25:16]} (11... exd4 $16 12. Nc4 Qd5) 12. cxd4 {[%emt 0:01:34]} (12. Nc4 $18 Qd5 13. cxd4) 12... e4 $2 {[%emt 0:10:14]} (12... Nxd4 $16 {keeps fighting.} 13. Nxd4 Qxd4) 13. Nc4 $18 {[%emt 0:02:07]} Qd5 {[%emt 0:00:02]} 14. Ne3 {[%emt 0:06:32]} (14. Nfe5 $18) 14... Qd6 $16 {[%emt 0:00:06] [#]} 15. Nc4 {[%emt 0:01:31]} (15. Ng5 $1 $16 {[%cal Rg5f7]}) 15... Qd5 $18 {[%emt 0:00:01]} 16. Ne3 $2 {[%emt 0:46:17]} (16. Nfe5 $18) 16... Qf7 $2 {[%emt 0:21:01]} ({Black should play} 16... Qd6 $11 17. Nc4) 17. Bc4 {[%emt 0:00:30]} (17. Ne5 $6 Nxe5 18. dxe5 Be6 $14) 17... Qe8 {[%emt 0:00:30]} 18. Be2 {[%emt 0:00:30][%mdl 8192]} (18. Ng5 $18 {aiming for Bf7.} Nh6 19. Nd5) 18... Qf7 $4 {[%mdl 8192] [#]} (18... exf3 $19 {and life is good for Black.} 19. Bxf3 Nf6) 19. Bc4 {[%emt 0:00:30]} ({Don't play} 19. Ne5 $6 Nxe5 20. dxe5 Be6 $11) 19... Qe8 20. Ng5 {[%emt 0:00:30]} Nh6 {[%emt 0:01:30] Inhibits Bf7.} 21. d5 {[%emt 0:00:30] White is more active.} (21. Ba2 $16) 21... Ne5 $14 22. Qd4 {[%emt 0:00:30]} (22. Qb3 $14) 22... Ng8 $2 {[%emt 0:01:00][%mdl 40960] Weighted Error Value: White=1.11/Black=0.73. An unexpected result.} (22... Kb8 $11) 1/2-1/2

[Event "1st Henriquez Urena Memorial 2022"]
[Site "Santo Domingo"]
[Date "2022.09.22"]
[Round "9.4"]
[White "Michelen Rodriguez, Victor Isaac"]
[Black "Cuenca Jimenez, Jose Fernando"]
[Result "0-1"]
[ECO "E14"]
[WhiteElo "2228"]
[BlackElo "2553"]
[Annotator "TA"]
[PlyCount "100"]
[EventDate "2022.09.16"]
[EventType "swiss"]
[EventCountry "DOM"]
[SourceTitle "playchess.com"]
[Source "ChessBase"]
[SourceQuality "1"]
[TimeControl "5400+30"]

{[%evp 15,100,0,0,0,0,0,0,0,0,0,0,0,0,0,0,-19,0,-20,-13,-89,-74,-89,-89,-94,-85,-73,-64,-66,-69,-137,-138,-455,-455,-446,-509,-507,-487,-481,-429,-496,-496,-496,-496,-541,-535,-510,-510,-509,-502,-597,-425,-682,-682,-704,-682,-683,-667,-635,-598,-610,-562,-639,-569,-626,-619,-1726,-1693,-1693,-1693,-1693,-1693,-1693,-1693,-1693,-1418,-1693,-1693,-1566,-1359,-1029,-988,-1657,-1577,-1899,-1687,-29978,-29972]} 1. c4 {[%emt 0:00:02]} e6 {[%emt 0:01:58]} 2. Nc3 {[%emt 0:00:20]} d5 {[%emt 0:01:22]} 3. e3 {[%emt 0:01:23]} Nf6 {[%emt 0:00:36]} 4. Nf3 {[%emt 0:00:05]} Be7 {[%emt 0:00:09]} 5. d4 {[%emt 0:00:42]} O-O {[%emt 0:00:42]} 6. Bd3 {[%emt 0:00:24]} b6 {[%emt 0:02:10]} 7. O-O {[%emt 0:01:34]} Bb7 {[%emt 0:00:08]} 8. b3 {[%emt 0:00:59]} c5 {[%emt 0:01:10]} 9. dxc5 {[%emt 0:00:30] E14: Queen's Indian: Classical Variation (4 e3).} bxc5 {[%emt 0:00:18]} 10. Bb2 {[%emt 0:01:23]} Nbd7 {[%emt 0:00:52]} 11. Qe2 {[%emt 0:01:34] The position is equal.} a6 {[%emt 0:01:52] [#]} 12. Rfd1 $146 {[%emt 0:03:42]} ({Predecessor:} 12. Rad1 Bd6 13. cxd5 exd5 14. Ng5 Re8 15. Nxd5 Bxd5 16. Bxh7+ Nxh7 17. Rxd5 Nxg5 18. Rxd6 Qe7 19. Rfd1 Nf8 20. h4 Ne4 21. Qg4 f5 {0-1 (21) Brown,A (2106)-Hecht,H (2374) Hamilton 2010}) 12... Bd6 {[%emt 0:00:17]} 13. Rac1 {[%emt 0:04:06]} Re8 {[%emt 0:01:17]} 14. Bb1 {[%emt 0:01:52]} Qe7 {[%emt 0:04:48]} 15. Rd2 {[%emt 0:04:22]} Nb6 {[%emt 0:06:03]} (15... d4 {keeps more tension.} 16. exd4 Bf4 17. Rcd1 Bxd2 18. Rxd2 Qd6) 16. Rcd1 {[%emt 0:29:23]} Rad8 {[%emt 0:07:13]} 17. Bd3 {[%emt 0:02:35]} (17. Ba3 $11 {keeps the balance.}) 17... e5 $1 $17 {[%emt 0:08:31] ...e4 is the strong threat.} 18. e4 {[%emt 0:04:40]} d4 {[%emt 0:00:06]} 19. Nd5 {[%emt 0:01:26]} Nbxd5 {[%emt 0:01:24]} 20. cxd5 {[%emt 0:00:07] [#]} Nxd5 $1 {[%emt 0:02:02]} 21. exd5 {[%emt 0:13:18] Threatens to win with Qe4.} e4 $36 {[%emt 0:00:08][%mdl 2048] White is under pressure.} 22. Bc4 {[%emt 0:00:49]} (22. Qxe4 $15 Qxe4 23. Bxe4 Rxe4 24. b4) 22... exf3 {[%emt 0:07:29]} 23. Qxf3 {[%emt 0:01:13][%mdl 8192] [#] This costs White the game.} (23. Qxe7 $17 Bxe7 24. b4) 23... Bxd5 $1 $19 {[%emt 0:02:13][%mdl 512]} 24. Qxd5 {[%emt 0:09:16] [#]} (24. Bxd5 $2 {[#] is a self mate.} Qe1+ $3 {[%mdl 512]} 25. Rxe1 Rxe1#) (24. Qd3 Bxc4) 24... Bxh2+ $1 {[%emt 0:00:17][%mdl 576] Discovered Attack} 25. Kxh2 {[%emt 0:00:03]} Rxd5 {[%emt 0:00:23]} 26. Bxd5 {[%emt 0:00:44]} Qd6+ {[%emt 0:00:08]} 27. Kg1 {[%emt 0:02:01]} Qxd5 {[%emt 0:00:05]} 28. b4 {[%emt 0:00:06]} cxb4 {[%emt 0:01:08]} 29. Rxd4 {[%emt 0:04:17]} Qxa2 {[%emt 0:01:46]} 30. Rxb4 {[%emt 0:00:21]} h6 {[%emt 0:02:00]} 31. Ra1 {[%emt 0:00:14]} Qe6 {[%emt 0:02:37][%cal Oa6a5]} 32. Rba4 {[%emt 0:00:22]} Qe2 {[%emt 0:00:14]} 33. Ba3 {[%emt 0:06:50]} (33. Bc3 $142) 33... Rd8 {[%emt 0:02:27]} 34. Rh4 {[%emt 0:04:34]} Rd5 {[%emt 0:00:51]} 35. Rh3 {[%emt 0:01:52]} a5 {[%emt 0:01:02]} 36. Re3 {[%emt 0:00:18]} Qc2 {[%emt 0:00:43]} 37. Rc1 {[%emt 0:00:16]} Qa2 {[%emt 0:02:31]} 38. Rf3 {[%emt 0:00:30]} Rg5 {[%emt 0:00:31]} 39. Re1 {[%emt 0:00:50]} Qd5 {[%emt 0:00:40]} 40. Re8+ {[%emt 0:00:40]} Kh7 {[%emt 0:00:07] ( -> ...Qxf3)} 41. Ree3 {[%emt 0:00:04]} Qd1+ {[%emt 0:00:13]} 42. Kh2 {[%emt 0:00:08]} Qf1 {[%emt 0:00:32][%csl Gg5][%cal Rf1g2]} 43. Rg3 {[%emt 0:01:06]} Rh5+ {[%emt 0:00:57]} 44. Rh3 {[%emt 0:00:07]} Rxh3+ {[%emt 0:00:14]} 45. Rxh3 {[%emt 0:00:05]} Qxf2 {[%emt 0:00:08] KQ-KRB} 46. Rf3 {[%emt 0:00:04]} Qh4+ {[%emt 0:00:22]} 47. Kg1 {[%emt 0:00:13]} Qd4+ {[%emt 0:00:11]} 48. Kh1 {[%emt 0:00:12]} f6 {[%emt 0:00:12] Strongly threatening ...g5.} 49. Kh2 {[%emt 0:00:23]} a4 {[%emt 0:00:22] And now ...g5 would win.} 50. Rg3 {[%emt 0:00:10]} Qf4 {[%emt 0:00:22] Weighted Error Value: White=0.46/Black=0.13 (very precise)} 0-1

[Event "1st Henriquez Urena Memorial 2022"]
[Site "Santo Domingo"]
[Date "2022.09.22"]
[Round "9.5"]
[White "Ferreira Fernandez, Sergio"]
[Black "Araujo Sanchez, Josue"]
[Result "1/2-1/2"]
[ECO "E10"]
[WhiteElo "2119"]
[BlackElo "2281"]
[Annotator "TA"]
[PlyCount "85"]
[EventDate "2022.09.16"]
[EventType "swiss"]
[EventCountry "DOM"]
[SourceTitle "playchess.com"]
[Source "ChessBase"]
[SourceQuality "1"]
[TimeControl "5400+30"]

{[%evp 9,85,-11,14,8,20,1,11,-8,7,0,38,11,11,23,25,0,18,0,2,0,0,-14,-31,-27,-16,-22,-31,-39,-29,-33,0,0,0,0,19,22,40,16,16,0,36,28,52,47,52,45,45,45,39,45,36,32,42,25,26,31,51,42,51,38,41,0,0,0,0,0,0,0,0,0,0,0,0,0,0,0,0,-24]} 1. d4 {[%emt 0:00:02]} Nf6 {[%emt 0:22:17]} 2. c4 {[%emt 0:05:37]} e6 {[%emt 0:01:15]} 3. Nf3 {[%emt 0:00:01]} a6 {[%emt 0:00:32]} 4. a4 {[%emt 0:16:18]} a5 {[%emt 0:02:10]} 5. g3 {[%emt 0:05:02]} d5 {[%emt 0:02:53]} 6. Bg2 {[%emt 0:00:24] E10: Blumenfeld Gambit.} Bb4+ {[%emt 0:02:15] [#]} 7. Bd2 $146 {[%emt 0:05:21]} ({Predecessor:} 7. Nbd2 O-O 8. O-O b6 9. Qc2 Bb7 10. b3 Na6 11. Bb2 Rc8 12. cxd5 exd5 13. Rac1 {0-1 (25) Veinberg,N (1952)-Kudischewitsch,D (2352) Kefar Sava 2010}) 7... Nc6 {[%emt 1:02:38]} 8. Qc1 {[%emt 0:11:36]} (8. Ne5 {with more complications.} Qe7 9. cxd5 exd5 10. Nxc6 bxc6 11. Qc2) 8... O-O {[%emt 0:00:00]} 9. O-O {[%emt 0:00:03]} Qe7 {[%emt 0:00:00]} 10. Bg5 {[%emt 0:14:05]} h6 {[%emt 0:00:00]} 11. Bxf6 {[%emt 0:05:31]} Qxf6 {[%emt 0:00:00]} 12. e3 {[%emt 0:07:16]} Rd8 {[%emt 0:00:00]} 13. Na3 {[%emt 0:04:10][%cal Bb1a3,Ba3b5,Bb5c3,Bc3e2][%mdl 32]} Bd7 {[%emt 0:00:00]} 14. Nb5 {[%emt 0:06:03] Strongly threatening cxd5.} Rac8 {[%emt 0:00:00]} 15. h3 {[%emt 0:01:47]} Bf8 {[%emt 0:00:00]} 16. Rd1 {[%emt 0:01:42]} Be8 {[%emt 0:00:00]} 17. b3 {[%emt 0:00:38]} Nb4 {[%emt 0:00:00]} 18. Nc3 {[%emt 0:01:55]} c5 {[%emt 0:00:00]} 19. cxd5 {[%emt 0:00:07]} cxd4 {[%emt 0:00:00]} 20. Nxd4 {[%emt 0:00:28]} exd5 {[%emt 0:00:00]} 21. Qd2 {[%emt 0:01:42]} Bc6 {[%emt 0:00:00]} 22. Rac1 {[%emt 0:01:50]} Bd6 {[%emt 0:00:00]} 23. Nce2 {[%emt 0:01:59] Pair of Knights!} Bd7 {[%emt 0:00:00]} 24. Nc3 {[%emt 0:00:52]} Bc6 {[%emt 0:00:00]} 25. Na2 {[%emt 0:01:29]} Rc7 {[%emt 0:01:41]} 26. Nxb4 {[%emt 0:02:28]} Bxb4 {[%emt 0:00:15]} 27. Qd3 {[%emt 0:00:37]} Rcd7 {[%emt 0:00:57][%cal Bc7d7,Bd7d6,Bd6f6][%mdl 32]} 28. Rc2 {[%emt 0:00:25]} g6 {[%emt 0:00:27]} 29. Qe2 {[%emt 0:01:48]} Rd6 {[%emt 0:00:51]} 30. Qf3 {[%emt 0:00:23]} Qe7 {[%emt 0:00:46]} 31. Bf1 {[%emt 0:00:02]} h5 {[%emt 0:02:29]} 32. Bb5 {[%emt 0:00:32][%cal Rb5c6]} Rf6 {[%emt 0:00:22]} 33. Qg2 {[%emt 0:01:11][%cal Rb5c6]} Bxb5 {[%emt 0:00:33]} 34. Nxb5 {[%emt 0:00:17]} Rc6 {[%emt 0:01:08]} 35. Rdc1 {[%emt 0:02:49]} Rdc8 {[%emt 0:02:36] The position is equal.} (35... Rxc2 {is interesting.} 36. Rxc2 Qe4 37. Rc7 b6) 36. Nd4 {[%emt 0:00:08]} Rxc2 {[%emt 0:01:14]} 37. Rxc2 {[%emt 0:00:01]} Rxc2 {[%emt 0:00:35]} 38. Nxc2 $11 {[%emt 0:00:01] KQB-KQN} Qc5 {[%emt 0:00:32]} 39. Nd4 {[%emt 0:00:05]} Bc3 {[%emt 0:00:22]} 40. Nb5 {[%emt 0:00:15]} Be5 {[%emt 0:00:07]} 41. Qf3 {[%emt 0:00:41]} Qc1+ {[%emt 0:00:32]} 42. Kg2 {[%emt 0:00:09]} Qd2 {[%emt 0:00:21]} 43. h4 {[%emt 0:00:10] Weighted Error Value: White=0.09 (flawless) /Black=0.07 (flawless)} 1/2-1/2

[Event "1st Henriquez Urena Memorial 2022"]
[Site "Santo Domingo"]
[Date "2022.09.22"]
[Round "9.6"]
[White "Mendez Ramirez, Victor"]
[Black "Guzman, Christopher"]
[Result "1/2-1/2"]
[ECO "A14"]
[WhiteElo "2153"]
[BlackElo "2252"]
[Annotator "TA"]
[PlyCount "53"]
[EventDate "2022.09.16"]
[EventType "swiss"]
[EventCountry "DOM"]
[SourceTitle "playchess.com"]
[Source "ChessBase"]
[SourceQuality "1"]
[TimeControl "5400+30"]

{[%evp 19,53,0,6,3,5,0,0,-79,-58,-62,-74,-60,-45,-73,-65,-64,-64,-64,-68,-60,-13,0,31,30,22,23,26,20,21,32,44,0,0,0,50,0]} 1. c4 {[%emt 1:31:00]} Nf6 {[%emt 0:04:09]} 2. g3 e6 {[%emt 0:02:42]} 3. Bg2 d5 {[%emt 0:03:22]} 4. Nf3 Be7 {[%emt 1:22:17]} 5. O-O {[%emt 0:02:00]} O-O {[%emt 0:00:00]} 6. b3 {[%emt 0:00:00]} b6 {[%emt 0:00:00]} 7. Bb2 {[%emt 0:00:00]} Bb7 {[%emt 0:00:00]} 8. d3 {[%emt 0:00:00]} c5 {[%emt 0:00:00]} 9. e3 $1 {[%emt 0:00:00] The main line 9.e3 scores better than 9.Nbd2.} Nc6 {[%emt 0:00:00]} 10. Qe2 {[%emt 0:00:00]} Qc7 {[%emt 0:00:00]} 11. Rd1 {[%emt 0:00:00] A14: English Opening: 1...e6 with b3 by White.} Rfd8 {[%emt 0:00:00]} 12. Nbd2 {[%emt 0:00:00]} d4 {[%emt 0:00:00]} 13. e4 {[%emt 0:00:00]} (13. exd4 $11 cxd4 14. a3) 13... Nd7 {[%emt 0:00:00][%cal Bf6d7,Bd7f8,Bf8g6][%mdl 32]} 14. Rf1 {[%emt 0:00:00] [#]} e5 $146 {[%emt 0:00:00]} ({Predecessor:} 14... Rf8 15. Ne1 Rae8 16. a3 f5 17. f4 fxe4 18. dxe4 e5 19. Nd3 Bf6 20. Kh1 Nd8 {0-1 (39) Mercier,J (2225)-Roos,C (2165) Montpellier 1991}) 15. Ne1 {[%emt 0:00:00]} Bd6 {[%emt 0:00:00]} 16. Bh3 {[%emt 0:00:00]} Nf8 {[%emt 0:00:00]} 17. Ng2 {[%emt 0:00:00]} Ng6 {[%emt 0:00:00]} 18. f3 {[%emt 0:00:00]} Rf8 {[%emt 0:00:00]} 19. Rf2 {[%emt 0:00:00]} Nce7 {[%emt 0:00:00]} (19... Rae8 $15) 20. Raf1 $11 {[%emt 0:00:00]} f5 {[%emt 0:00:00]} 21. exf5 {[%emt 0:00:00]} Nxf5 {[%emt 0:00:00]} 22. Ne4 {[%emt 0:00:00]} Rae8 {[%emt 0:00:00]} 23. Bc1 {[%emt 0:00:00]} Bc8 {[%emt 0:01:45][%cal Of5g3]} 24. Bg4 {[%emt 0:00:00]} Bb7 {[%emt 0:04:19]} 25. Bh3 {[%emt 0:02:07]} Bc8 {[%emt 0:03:21][%cal Of5g3]} 26. Bg4 {[%emt 0:01:55]} ({White should try} 26. f4 $11) 26... Bb7 $14 {[%emt 0:00:44]} 27. Bh3 {[%emt 0:02:30] Weighted Error Value: White=0.13 (very precise) /Black=0.07 (flawless)} ({Better is} 27. Bd2 $14) 1/2-1/2